[Event "Titled Tuesday Blitz January 18 2022"]
[White "Sanal, Vahap"]
[Black "Korchmar, Vasiliy"]
[WhiteFideId "6300545"]
[BlackFideId "24131750"]
[WhiteElo "2603"]
[BlackElo "2370"]
[Result "1-0"]
[Round "03"]
[TimeControl "180+1"]
[Date "2022.01.18"]
[WhiteClock "0:01:02"]
[BlackClock "0:00:03"]

1. e4 {[%clk 0:03:00]}  c5 {[%clk 0:02:59]} 2. Nf3 {[%clk 0:03:00]}  d6 {[%clk 0:03:00]} 3. d4 {[%clk 0:03:01]}  cxd4 {[%clk 0:03:01]} 4. Nxd4 {[%clk 0:03:02]}  Nf6 {[%clk 0:03:01]} 5. Nc3 {[%clk 0:03:02]}  Nc6 {[%clk 0:03:01]} 6. Bg5 {[%clk 0:03:02]}  e6 {[%clk 0:03:01]} 7. Qd2 {[%clk 0:03:02]}  a6 {[%clk 0:03:01]} 8. O-O-O {[%clk 0:03:03]}  h6 {[%clk 0:03:02]} 9. Be3 {[%clk 0:02:54]}  Be7 {[%clk 0:03:00]} 10. f3 {[%clk 0:02:54]}  Nxd4 {[%clk 0:03:00]} 11. Bxd4 {[%clk 0:02:54]}  b5 {[%clk 0:03:01]} 12. Kb1 {[%clk 0:02:53]}  Rb8 {[%clk 0:02:50]} 13. g4 {[%clk 0:02:48]}  b4 {[%clk 0:02:37]} 14. Ne2 {[%clk 0:02:48]}  e5 {[%clk 0:02:37]} 15. Be3 {[%clk 0:02:47]}  Be6 {[%clk 0:02:36]} 16. Ng3 {[%clk 0:02:47]}  Qa5 {[%clk 0:02:21]} 17. b3 {[%clk 0:02:47]}  d5 {[%clk 0:02:21]} 18. Nf5 {[%clk 0:02:45]}  Bxf5 {[%clk 0:02:02]} 19. gxf5 {[%clk 0:02:43]}  dxe4 {[%clk 0:01:36]} 20. Qg2 {[%clk 0:02:13]}  exf3 {[%clk 0:01:23]} 21. Qxf3 {[%clk 0:02:13]}  O-O {[%clk 0:01:18]} 22. Bc4 {[%clk 0:02:08]}  Rbc8 {[%clk 0:01:13]} 23. Rhg1 {[%clk 0:02:03]}  Kh7 {[%clk 0:01:06]} 24. Qg3 {[%clk 0:01:55]}  Rg8 {[%clk 0:01:00]} 25. Bxf7 {[%clk 0:01:49]}  Ne4 {[%clk 0:01:00]} 26. Qg6+ {[%clk 0:01:44]}  Kh8 {[%clk 0:01:00]} 27. Rd3 {[%clk 0:01:20]}  Rxc2 {[%clk 0:00:47]} 28. Kxc2 {[%clk 0:01:16]}  Qxa2+ {[%clk 0:00:46]} 29. Kd1 {[%clk 0:01:17]}  Nc3+ {[%clk 0:00:20]} 30. Rxc3 {[%clk 0:01:16]}  bxc3 {[%clk 0:00:21]} 31. Bxg8 {[%clk 0:01:07]}  c2+ {[%clk 0:00:14]} 32. Ke1 {[%clk 0:01:03]}  Bb4+ {[%clk 0:00:04]} 33. Kf1 {[%clk 0:01:03]}  Qb1+ {[%clk 0:00:03]} 34. Kg2 {[%clk 0:01:02]} 1-0


[Site "https://www.chess.com"]

[Event "Titled Tuesday Blitz January 18 2022"]
[White "Seo, Jung Min"]
[Black "Sjoberg, Isak"]
[WhiteFideId "1734687"]
[BlackFideId "1521640"]
[WhiteElo "2401"]
[BlackElo "2016"]
[Result "1-0"]
[Round "03"]
[TimeControl "180+1"]
[Date "2022.01.18"]
[WhiteClock "0:00:39"]
[BlackClock "0:00:01"]

1. d4 {[%clk 0:03:00]}  Nf6 {[%clk 0:02:57]} 2. c4 {[%clk 0:03:01]}  e6 {[%clk 0:02:58]} 3. Nf3 {[%clk 0:03:01]}  c5 {[%clk 0:02:57]} 4. d5 {[%clk 0:03:01]}  exd5 {[%clk 0:02:57]} 5. cxd5 {[%clk 0:03:01]}  d6 {[%clk 0:02:58]} 6. Nc3 {[%clk 0:03:01]}  g6 {[%clk 0:02:59]} 7. e4 {[%clk 0:03:01]}  Bg7 {[%clk 0:02:59]} 8. Be2 {[%clk 0:02:58]}  O-O {[%clk 0:02:59]} 9. O-O {[%clk 0:02:58]}  Re8 {[%clk 0:02:57]} 10. Nd2 {[%clk 0:02:58]}  Na6 {[%clk 0:02:56]} 11. Re1 {[%clk 0:02:57]}  Nc7 {[%clk 0:02:56]} 12. Bf1 {[%clk 0:02:54]}  Rb8 {[%clk 0:02:49]} 13. a4 {[%clk 0:02:51]}  b6 {[%clk 0:02:49]} 14. Nc4 {[%clk 0:02:51]}  Ba6 {[%clk 0:02:48]} 15. Bf4 {[%clk 0:02:48]}  Bxc4 {[%clk 0:02:47]} 16. Bxc4 {[%clk 0:02:48]}  Nh5 {[%clk 0:02:45]} 17. Bd2 {[%clk 0:02:47]}  a6 {[%clk 0:02:39]} 18. Qe2 {[%clk 0:02:41]}  Qc8 {[%clk 0:02:12]} 19. Rab1 {[%clk 0:02:40]}  f5 {[%clk 0:01:57]} 20. Qd3 {[%clk 0:02:32]}  f4 {[%clk 0:01:55]} 21. b4 {[%clk 0:02:30]}  Rf8 {[%clk 0:01:38]} 22. e5 {[%clk 0:02:16]}  f3 {[%clk 0:01:16]} 23. exd6 {[%clk 0:02:03]}  Qg4 {[%clk 0:01:15]} 24. g3 {[%clk 0:02:03]}  Ne8 {[%clk 0:00:54]} 25. bxc5 {[%clk 0:01:39]}  Rf5 {[%clk 0:00:34]} 26. d7 {[%clk 0:01:35]}  Nef6 {[%clk 0:00:29]} 27. d6+ {[%clk 0:01:35]}  Kh8 {[%clk 0:00:29]} 28. c6 {[%clk 0:01:18]}  Nxg3 {[%clk 0:00:09]} 29. fxg3 {[%clk 0:01:13]}  Qh3 {[%clk 0:00:03]} 30. Qf1 {[%clk 0:01:12]}  f2+ {[%clk 0:00:04]} 31. Qxf2 {[%clk 0:00:55]}  Rxf2 {[%clk 0:00:05]} 32. Kxf2 {[%clk 0:00:56]}  Ng4+ {[%clk 0:00:05]} 33. Ke2 {[%clk 0:00:54]}  Qg2+ {[%clk 0:00:03]} 34. Kd1 {[%clk 0:00:52]}  Qf3+ {[%clk 0:00:04]} 35. Kc2 {[%clk 0:00:51]}  Qf5+ {[%clk 0:00:01]} 36. Bd3 {[%clk 0:00:50]}  Qf8 {[%clk 0:00:02]} 37. c7 {[%clk 0:00:48]}  Ra8 {[%clk 0:00:01]} 38. Bxa6 {[%clk 0:00:39]} 1-0


[Site "https://www.chess.com"]

[Event "Titled Tuesday Blitz January 18 2022"]
[White "Talibov, Shiroghlan"]
[Black "Erece, Ece Alkim"]
[WhiteFideId "13429078"]
[BlackFideId "6346006"]
[WhiteElo "2070"]
[BlackElo "1662"]
[Result "0-1"]
[Round "03"]
[TimeControl "180+1"]
[Date "2022.01.18"]
[WhiteClock "0:00:19"]
[BlackClock "0:01:44"]

1. e4 {[%clk 0:03:00]}  c5 {[%clk 0:02:59]} 2. Nf3 {[%clk 0:03:00]}  g6 {[%clk 0:02:59]} 3. c3 {[%clk 0:02:59]}  Bg7 {[%clk 0:02:57]} 4. d4 {[%clk 0:02:59]}  cxd4 {[%clk 0:02:57]} 5. cxd4 {[%clk 0:03:00]}  d5 {[%clk 0:02:58]} 6. exd5 {[%clk 0:02:58]}  Nf6 {[%clk 0:02:58]} 7. d6 {[%clk 0:02:55]}  exd6 {[%clk 0:02:56]} 8. Bb5+ {[%clk 0:02:54]}  Nbd7 {[%clk 0:02:48]} 9. O-O {[%clk 0:02:52]}  O-O {[%clk 0:02:48]} 10. Nc3 {[%clk 0:02:52]}  a6 {[%clk 0:02:49]} 11. Ba4 {[%clk 0:02:51]}  b5 {[%clk 0:02:49]} 12. Bb3 {[%clk 0:02:49]}  Nb6 {[%clk 0:02:48]} 13. Bg5 {[%clk 0:02:46]}  h6 {[%clk 0:02:43]} 14. Bh4 {[%clk 0:02:41]}  g5 {[%clk 0:02:42]} 15. Bg3 {[%clk 0:02:38]}  d5 {[%clk 0:02:39]} 16. Ne5 {[%clk 0:02:27]}  Be6 {[%clk 0:02:34]} 17. Re1 {[%clk 0:02:23]}  Rc8 {[%clk 0:02:33]} 18. Rc1 {[%clk 0:02:22]}  Nfd7 {[%clk 0:02:30]} 19. Bc2 {[%clk 0:02:21]}  Nxe5 {[%clk 0:02:27]} 20. Bxe5 {[%clk 0:02:20]}  Qd7 {[%clk 0:02:23]} 21. Qd3 {[%clk 0:02:19]}  f5 {[%clk 0:02:22]} 22. Qh3 {[%clk 0:02:14]}  Bxe5 {[%clk 0:02:17]} 23. Rxe5 {[%clk 0:02:15]}  Kg7 {[%clk 0:02:17]} 24. Rce1 {[%clk 0:02:14]}  Rce8 {[%clk 0:02:16]} 25. Ne2 {[%clk 0:01:54]}  Nc4 {[%clk 0:02:07]} 26. Ng3 {[%clk 0:01:45]}  Nxe5 {[%clk 0:02:05]} 27. Rxe5 {[%clk 0:01:46]}  f4 {[%clk 0:02:03]} 28. Nh5+ {[%clk 0:01:43]}  Kg8 {[%clk 0:01:59]} 29. Qf3 {[%clk 0:01:31]}  Bg4 {[%clk 0:01:52]} 30. Qc3 {[%clk 0:00:36]}  Rxe5 {[%clk 0:01:48]} 31. dxe5 {[%clk 0:00:31]}  Bxh5 {[%clk 0:01:48]} 32. Bb3 {[%clk 0:00:30]}  Bf7 {[%clk 0:01:47]} 33. Qd4 {[%clk 0:00:27]}  Rc8 {[%clk 0:01:46]} 34. h3 {[%clk 0:00:23]}  f3 {[%clk 0:01:46]} 35. Kh2 {[%clk 0:00:20]}  fxg2 {[%clk 0:01:46]} 36. Kg1 {[%clk 0:00:19]}  Qxh3 {[%clk 0:01:44]} 0-1


[Site "https://www.chess.com"]

[Event "Titled Tuesday Blitz January 18 2022"]
[White "Tristan, Leonardo"]
[Black "Hakobyan, Aram"]
[WhiteFideId "113816"]
[BlackFideId "13306677"]
[WhiteElo "2404"]
[BlackElo "2557"]
[Result "0-1"]
[Round "03"]
[TimeControl "180+1"]
[Date "2022.01.18"]
[WhiteClock "0:00:04"]
[BlackClock "0:00:51"]

1. d4 {[%clk 0:03:00]}  Nf6 {[%clk 0:03:00]} 2. Nf3 {[%clk 0:03:01]}  e6 {[%clk 0:03:00]} 3. Bf4 {[%clk 0:03:01]}  d5 {[%clk 0:02:58]} 4. e3 {[%clk 0:03:01]}  c5 {[%clk 0:02:59]} 5. Nbd2 {[%clk 0:02:56]}  Qb6 {[%clk 0:02:59]} 6. Rb1 {[%clk 0:02:45]}  cxd4 {[%clk 0:02:59]} 7. exd4 {[%clk 0:02:45]}  Bd7 {[%clk 0:03:00]} 8. c3 {[%clk 0:02:42]}  Bb5 {[%clk 0:03:00]} 9. Qb3 {[%clk 0:02:35]}  Bxf1 {[%clk 0:02:59]} 10. Nxf1 {[%clk 0:02:36]}  Qa6 {[%clk 0:02:52]} 11. a4 {[%clk 0:02:34]}  Nc6 {[%clk 0:02:52]} 12. Qb5 {[%clk 0:02:31]}  Qb6 {[%clk 0:02:52]} 13. N1d2 {[%clk 0:02:24]}  Be7 {[%clk 0:02:53]} 14. O-O {[%clk 0:02:19]}  O-O {[%clk 0:02:53]} 15. Rfe1 {[%clk 0:02:14]}  Rfc8 {[%clk 0:02:51]} 16. Ra1 {[%clk 0:02:10]}  Bd8 {[%clk 0:02:49]} 17. h4 {[%clk 0:02:05]}  h6 {[%clk 0:02:48]} 18. Qxb6 {[%clk 0:01:55]}  Bxb6 {[%clk 0:02:47]} 19. Ne5 {[%clk 0:01:55]}  Bc7 {[%clk 0:02:39]} 20. Nxc6 {[%clk 0:01:37]}  bxc6 {[%clk 0:02:36]} 21. Bxc7 {[%clk 0:01:37]}  Rxc7 {[%clk 0:02:37]} 22. b4 {[%clk 0:01:38]}  a5 {[%clk 0:02:37]} 23. bxa5 {[%clk 0:01:38]}  Rxa5 {[%clk 0:02:36]} 24. Nb3 {[%clk 0:01:38]}  Ra8 {[%clk 0:02:35]} 25. Nc5 {[%clk 0:01:33]}  Nd7 {[%clk 0:02:36]} 26. Nxd7 {[%clk 0:01:30]}  Rxd7 {[%clk 0:02:37]} 27. Reb1 {[%clk 0:00:57]}  Rc7 {[%clk 0:02:37]} 28. c4 {[%clk 0:00:39]}  Rca7 {[%clk 0:02:31]} 29. Rb4 {[%clk 0:00:38]}  h5 {[%clk 0:02:23]} 30. Kf1 {[%clk 0:00:34]}  Kh7 {[%clk 0:02:22]} 31. Ke2 {[%clk 0:00:33]}  Kg6 {[%clk 0:02:20]} 32. c5 {[%clk 0:00:29]}  Kf5 {[%clk 0:02:18]} 33. Ra3 {[%clk 0:00:20]}  f6 {[%clk 0:02:13]} 34. Rf3+ {[%clk 0:00:19]}  Kg6 {[%clk 0:02:13]} 35. Ra3 {[%clk 0:00:19]}  Ra5 {[%clk 0:02:03]} 36. f3 {[%clk 0:00:17]}  e5 {[%clk 0:02:01]} 37. Ke3 {[%clk 0:00:18]}  Kf5 {[%clk 0:02:01]} 38. g3 {[%clk 0:00:18]}  R8a7 {[%clk 0:01:46]} 39. Kd3 {[%clk 0:00:19]}  g5 {[%clk 0:01:28]} 40. hxg5 {[%clk 0:00:19]}  fxg5 {[%clk 0:01:29]} 41. Ra2 {[%clk 0:00:18]}  exd4 {[%clk 0:01:27]} 42. Kxd4 {[%clk 0:00:17]}  h4 {[%clk 0:01:27]} 43. gxh4 {[%clk 0:00:14]}  gxh4 {[%clk 0:01:28]} 44. Ke3 {[%clk 0:00:14]}  Rh7 {[%clk 0:01:28]} 45. Rh2 {[%clk 0:00:14]}  h3 {[%clk 0:01:28]} 46. Rf4+ {[%clk 0:00:12]}  Ke5 {[%clk 0:01:26]} 47. Rg4 {[%clk 0:00:08]}  Rxc5 {[%clk 0:01:26]} 48. Rg5+ {[%clk 0:00:08]}  Kf6 {[%clk 0:01:26]} 49. Rg3 {[%clk 0:00:08]}  Rc3+ {[%clk 0:01:26]} 50. Kd2 {[%clk 0:00:07]}  Rc4 {[%clk 0:01:06]} 51. Rgxh3 {[%clk 0:00:07]}  Rxh3 {[%clk 0:01:06]} 52. Rxh3 {[%clk 0:00:08]}  Kg6 {[%clk 0:01:07]} 53. Rg3+ {[%clk 0:00:08]}  Kf5 {[%clk 0:01:06]} 54. Rg4 {[%clk 0:00:08]}  Rc5 {[%clk 0:00:51]} 55. Kd3 {[%clk 0:00:08]}  Ra5 {[%clk 0:00:50]} 56. Kc2 {[%clk 0:00:08]}  c5 {[%clk 0:00:48]} 57. Kb3 {[%clk 0:00:08]}  Ke5 {[%clk 0:00:47]} 58. Rg8 {[%clk 0:00:07]}  Ra7 {[%clk 0:00:47]} 59. Re8+ {[%clk 0:00:05]}  Kd4 {[%clk 0:00:48]} 60. Rh8 {[%clk 0:00:03]}  c4+ {[%clk 0:00:49]} 61. Ka3 {[%clk 0:00:03]}  Kc3 {[%clk 0:00:48]} 62. Rd8 {[%clk 0:00:02]}  d4 {[%clk 0:00:48]} 63. Rd5 {[%clk 0:00:01]}  d3 {[%clk 0:00:49]} 64. a5 {[%clk 0:00:02]}  d2 {[%clk 0:00:48]} 65. Ka4 {[%clk 0:00:02]}  Kc2 {[%clk 0:00:48]} 66. Kb5 {[%clk 0:00:03]}  c3 {[%clk 0:00:48]} 67. Kb6 {[%clk 0:00:03]}  Ra8 {[%clk 0:00:48]} 68. a6 {[%clk 0:00:03]}  d1=Q {[%clk 0:00:48]} 69. Rxd1 {[%clk 0:00:03]}  Kxd1 {[%clk 0:00:49]} 70. Kb7 {[%clk 0:00:04]}  Rf8 {[%clk 0:00:50]} 71. a7 {[%clk 0:00:04]}  c2 {[%clk 0:00:50]} 72. a8=Q {[%clk 0:00:04]}  Rxa8 {[%clk 0:00:51]} 0-1


[Site "https://www.chess.com"]

[Event "Titled Tuesday Blitz January 18 2022"]
[White "Vovk, Orest"]
[Black "Savchenko, Boris"]
[WhiteFideId "14113490"]
[BlackFideId "4147332"]
[WhiteElo "2203"]
[BlackElo "2512"]
[Result "0-1"]
[Round "03"]
[TimeControl "180+1"]
[Date "2022.01.18"]
[WhiteClock "0:00:02"]
[BlackClock "0:00:16"]

1. h4 {[%clk 0:03:00]}  d5 {[%clk 0:02:59]} 2. h5 {[%clk 0:03:00]}  c5 {[%clk 0:02:58]} 3. e4 {[%clk 0:02:59]}  dxe4 {[%clk 0:02:57]} 4. Nc3 {[%clk 0:03:00]}  Nf6 {[%clk 0:02:56]} 5. Rh4 {[%clk 0:02:59]}  Nc6 {[%clk 0:02:43]} 6. Nxe4 {[%clk 0:02:56]}  e5 {[%clk 0:02:43]} 7. Nxf6+ {[%clk 0:02:54]}  Qxf6 {[%clk 0:02:33]} 8. g3 {[%clk 0:02:52]}  Be7 {[%clk 0:02:32]} 9. Bc4 {[%clk 0:02:46]}  O-O {[%clk 0:02:24]} 10. d3 {[%clk 0:02:45]}  b5 {[%clk 0:02:11]} 11. Bd5 {[%clk 0:02:14]}  Qd6 {[%clk 0:02:05]} 12. Qf3 {[%clk 0:02:11]}  Bb7 {[%clk 0:01:42]} 13. Rg4 {[%clk 0:02:01]}  Kh8 {[%clk 0:01:34]} 14. h6 {[%clk 0:01:19]}  g6 {[%clk 0:01:32]} 15. Bxc6 {[%clk 0:00:10]}  Bxc6 {[%clk 0:01:30]} 16. Qe2 {[%clk 0:00:10]}  f5 {[%clk 0:01:29]} 17. Rg5 {[%clk 0:00:11]}  c4 {[%clk 0:01:14]} 18. dxc4 {[%clk 0:00:09]}  bxc4 {[%clk 0:01:14]} 19. Bd2 {[%clk 0:00:09]}  Rab8 {[%clk 0:01:06]} 20. O-O-O {[%clk 0:00:08]}  Kg8 {[%clk 0:00:46]} 21. Bc3 {[%clk 0:00:06]}  Bxg5+ {[%clk 0:00:45]} 22. f4 {[%clk 0:00:06]}  exf4 {[%clk 0:00:39]} 23. gxf4 {[%clk 0:00:03]}  Bxf4+ {[%clk 0:00:38]} 24. Kb1 {[%clk 0:00:03]}  Rfe8 {[%clk 0:00:32]} 25. Qxc4+ {[%clk 0:00:02]}  Bd5 {[%clk 0:00:32]} 26. Rxd5 {[%clk 0:00:02]}  Re4 {[%clk 0:00:27]} 27. Rd4+ {[%clk 0:00:02]}  Qe6 {[%clk 0:00:26]} 28. Rxe4 {[%clk 0:00:01]}  Qxc4 {[%clk 0:00:25]} 29. Rxc4 {[%clk 0:00:02]}  Rd8 {[%clk 0:00:24]} 30. a3 {[%clk 0:00:02]}  Bxh6 {[%clk 0:00:24]} 31. Nf3 {[%clk 0:00:01]}  Be3 {[%clk 0:00:20]} 32. Ka2 {[%clk 0:00:02]}  g5 {[%clk 0:00:20]} 33. Ne5 {[%clk 0:00:02]}  h5 {[%clk 0:00:19]} 34. Rc6 {[%clk 0:00:02]}  g4 {[%clk 0:00:18]} 35. Rg6+ {[%clk 0:00:02]}  Kh7 {[%clk 0:00:18]} 36. Rf6 {[%clk 0:00:03]}  f4 {[%clk 0:00:18]} 37. Rf7+ {[%clk 0:00:02]}  Kh6 {[%clk 0:00:19]} 38. Rf6+ {[%clk 0:00:03]}  Kh7 {[%clk 0:00:19]} 39. Rf7+ {[%clk 0:00:03]}  Kg8 {[%clk 0:00:19]} 40. Rf6 {[%clk 0:00:03]}  Re8 {[%clk 0:00:18]} 41. Rg6+ {[%clk 0:00:03]}  Kh7 {[%clk 0:00:19]} 42. Rg5 {[%clk 0:00:03]}  g3 {[%clk 0:00:16]} 43. Nf7 {[%clk 0:00:03]}  Rg8 {[%clk 0:00:15]} 44. Rxh5+ {[%clk 0:00:03]}  Kg6 {[%clk 0:00:16]} 45. Rg5+ {[%clk 0:00:03]}  Kxf7 {[%clk 0:00:16]} 46. Rf5+ {[%clk 0:00:03]}  Kg6 {[%clk 0:00:16]} 47. Rf6+ {[%clk 0:00:03]}  Kg5 {[%clk 0:00:16]} 48. Rf7 {[%clk 0:00:01]}  g2 {[%clk 0:00:16]} 49. Rf8 {[%clk 0:00:02]}  Rxf8 {[%clk 0:00:16]} 0-1


[Site "https://www.chess.com"]

[Event "Titled Tuesday Blitz January 18 2022"]
[White "Xiong, Jeffery"]
[Black "Kosakowski, Jakub"]
[WhiteFideId "2047640"]
[BlackFideId "1185080"]
[WhiteElo "2727"]
[BlackElo "2476"]
[Result "1/2-1/2"]
[Round "03"]
[TimeControl "180+1"]
[Date "2022.01.18"]
[WhiteClock "0:00:07"]
[BlackClock "0:00:10"]

1. e4 {[%clk 0:03:00]}  c5 {[%clk 0:02:59]} 2. Nc3 {[%clk 0:02:59]}  e6 {[%clk 0:02:59]} 3. Nf3 {[%clk 0:02:58]}  Nc6 {[%clk 0:02:58]} 4. d4 {[%clk 0:02:57]}  cxd4 {[%clk 0:02:58]} 5. Nxd4 {[%clk 0:02:58]}  Qc7 {[%clk 0:02:58]} 6. g4 {[%clk 0:02:56]}  a6 {[%clk 0:02:52]} 7. h4 {[%clk 0:02:51]}  Nf6 {[%clk 0:02:50]} 8. Nxc6 {[%clk 0:02:42]}  Qxc6 {[%clk 0:02:47]} 9. Bg2 {[%clk 0:02:32]}  Bb4 {[%clk 0:02:44]} 10. g5 {[%clk 0:02:29]}  Nxe4 {[%clk 0:02:36]} 11. O-O {[%clk 0:02:27]}  Bxc3 {[%clk 0:02:34]} 12. bxc3 {[%clk 0:02:28]}  d5 {[%clk 0:02:34]} 13. Bxe4 {[%clk 0:02:08]}  dxe4 {[%clk 0:02:33]} 14. Ba3 {[%clk 0:02:09]}  Bd7 {[%clk 0:02:31]} 15. Qd4 {[%clk 0:02:07]}  O-O-O {[%clk 0:02:21]} 16. Rfd1 {[%clk 0:01:58]}  e5 {[%clk 0:02:04]} 17. Qxe5 {[%clk 0:01:55]}  Bg4 {[%clk 0:02:05]} 18. Rd4 {[%clk 0:01:49]}  Rxd4 {[%clk 0:01:56]} 19. cxd4 {[%clk 0:01:50]}  Re8 {[%clk 0:01:56]} 20. Qf4 {[%clk 0:01:30]}  Be6 {[%clk 0:01:44]} 21. c4 {[%clk 0:01:26]}  Bxc4 {[%clk 0:01:38]} 22. Rd1 {[%clk 0:01:23]}  Qd5 {[%clk 0:01:29]} 23. Bd6 {[%clk 0:01:19]}  e3 {[%clk 0:01:21]} 24. fxe3 {[%clk 0:01:11]}  Re4 {[%clk 0:01:21]} 25. Qg3 {[%clk 0:01:12]}  Kd7 {[%clk 0:00:56]} 26. Bf4 {[%clk 0:01:11]}  Bxa2 {[%clk 0:00:56]} 27. Rc1 {[%clk 0:01:07]}  Bc4 {[%clk 0:00:55]} 28. Qg4+ {[%clk 0:01:08]}  Kd8 {[%clk 0:00:47]} 29. Kf2 {[%clk 0:01:03]}  Re6 {[%clk 0:00:46]} 30. Kg3 {[%clk 0:01:00]}  b5 {[%clk 0:00:45]} 31. Be5 {[%clk 0:00:57]}  f6 {[%clk 0:00:27]} 32. gxf6 {[%clk 0:00:54]}  gxf6 {[%clk 0:00:28]} 33. Qg8+ {[%clk 0:00:54]}  Kd7 {[%clk 0:00:23]} 34. Qxh7+ {[%clk 0:00:54]}  Re7 {[%clk 0:00:23]} 35. Qf5+ {[%clk 0:00:54]}  Qe6 {[%clk 0:00:23]} 36. Qxf6 {[%clk 0:00:48]}  Qxf6 {[%clk 0:00:24]} 37. Bxf6 {[%clk 0:00:49]}  Rxe3+ {[%clk 0:00:24]} 38. Kf4 {[%clk 0:00:49]}  Rh3 {[%clk 0:00:25]} 39. Ra1 {[%clk 0:00:44]}  b4 {[%clk 0:00:20]} 40. Ra4 {[%clk 0:00:44]}  Ke6 {[%clk 0:00:14]} 41. Bg5 {[%clk 0:00:31]}  Rd3 {[%clk 0:00:14]} 42. Rxb4 {[%clk 0:00:26]}  Rxd4+ {[%clk 0:00:15]} 43. Ke3 {[%clk 0:00:27]}  Kd5 {[%clk 0:00:14]} 44. h5 {[%clk 0:00:25]}  Re4+ {[%clk 0:00:13]} 45. Kf2 {[%clk 0:00:25]}  Re5 {[%clk 0:00:10]} 46. Be3 {[%clk 0:00:09]}  Rxh5 {[%clk 0:00:10]} 47. Ra4 {[%clk 0:00:08]}  Rf5+ {[%clk 0:00:11]} 48. Ke1 {[%clk 0:00:08]}  Bb5 {[%clk 0:00:10]} 49. Rd4+ {[%clk 0:00:08]}  Ke5 {[%clk 0:00:11]} 50. Kd2 {[%clk 0:00:08]}  Rf3 {[%clk 0:00:11]} 51. Rd8 {[%clk 0:00:08]}  Rh3 {[%clk 0:00:11]} 52. Bd4+ {[%clk 0:00:07]}  Ke4 {[%clk 0:00:11]} 53. Bc3 {[%clk 0:00:08]}  Rh2+ {[%clk 0:00:11]} 54. Kc1 {[%clk 0:00:09]}  Bd3 {[%clk 0:00:11]} 55. Bd2 {[%clk 0:00:07]}  Rh1+ {[%clk 0:00:10]} 56. Kb2 {[%clk 0:00:07]}  Bb5 {[%clk 0:00:10]} 57. Kc3 {[%clk 0:00:07]}  Rh3+ {[%clk 0:00:10]} 58. Kb4 {[%clk 0:00:07]}  Rd3 {[%clk 0:00:10]} 59. Rxd3 {[%clk 0:00:07]}  Kxd3 {[%clk 0:00:10]} 60. Bg5 {[%clk 0:00:07]}  a5+ {[%clk 0:00:10]} 61. Kxa5 {[%clk 0:00:07]} 1/2-1/2


[Site "https://www.chess.com"]

[Event "Titled Tuesday Blitz January 18 2022"]
[White "Zhigalko, Sergei"]
[Black "Klukin, Kirill"]
[WhiteFideId "13502956"]
[BlackFideId "24199273"]
[WhiteElo "2662"]
[BlackElo "2324"]
[Result "1-0"]
[Round "03"]
[TimeControl "180+1"]
[Date "2022.01.18"]
[WhiteClock "0:00:04"]
[BlackClock "0:00:08"]

1. e4 {[%clk 0:03:00]}  c5 {[%clk 0:02:54]} 2. Nf3 {[%clk 0:03:00]}  Nc6 {[%clk 0:02:54]} 3. c3 {[%clk 0:02:58]}  Nf6 {[%clk 0:02:55]} 4. e5 {[%clk 0:02:59]}  Nd5 {[%clk 0:02:55]} 5. Bc4 {[%clk 0:02:59]}  Nb6 {[%clk 0:02:55]} 6. Bb3 {[%clk 0:03:00]}  d5 {[%clk 0:02:54]} 7. exd6 {[%clk 0:03:01]}  Qxd6 {[%clk 0:02:54]} 8. O-O {[%clk 0:03:01]}  c4 {[%clk 0:02:54]} 9. Bc2 {[%clk 0:03:01]}  Bg4 {[%clk 0:02:55]} 10. Re1 {[%clk 0:03:01]}  e6 {[%clk 0:02:55]} 11. b3 {[%clk 0:02:58]}  Be7 {[%clk 0:02:49]} 12. Na3 {[%clk 0:02:54]}  cxb3 {[%clk 0:02:47]} 13. axb3 {[%clk 0:02:55]}  O-O {[%clk 0:02:44]} 14. Nc4 {[%clk 0:02:49]}  Qc7 {[%clk 0:02:40]} 15. Nxb6 {[%clk 0:02:30]}  Qxb6 {[%clk 0:02:32]} 16. d4 {[%clk 0:02:30]}  Rfd8 {[%clk 0:02:24]} 17. Ba3 {[%clk 0:01:26]}  Rac8 {[%clk 0:01:33]} 18. Bxh7+ {[%clk 0:00:55]}  Kf8 {[%clk 0:00:37]} 19. h3 {[%clk 0:00:44]}  Bxa3 {[%clk 0:00:27]} 20. Rxa3 {[%clk 0:00:40]}  Bxf3 {[%clk 0:00:25]} 21. Qxf3 {[%clk 0:00:41]}  Ne7 {[%clk 0:00:25]} 22. Be4 {[%clk 0:00:34]}  Rc7 {[%clk 0:00:25]} 23. Re3 {[%clk 0:00:18]}  a6 {[%clk 0:00:21]} 24. Qh5 {[%clk 0:00:17]}  Qd6 {[%clk 0:00:09]} 25. Qh8+ {[%clk 0:00:12]}  Ng8 {[%clk 0:00:09]} 26. Ra5 {[%clk 0:00:11]}  g6 {[%clk 0:00:06]} 27. Rf3 {[%clk 0:00:02]}  Ke7 {[%clk 0:00:05]} 28. Bxg6 {[%clk 0:00:02]}  fxg6 {[%clk 0:00:01]} 29. Qg7+ {[%clk 0:00:02]}  Ke8 {[%clk 0:00:02]} 30. Qxg8+ {[%clk 0:00:03]}  Kd7 {[%clk 0:00:03]} 31. Qxg6 {[%clk 0:00:03]}  Kc8 {[%clk 0:00:04]} 32. Qe4 {[%clk 0:00:02]}  Qd7 {[%clk 0:00:04]} 33. Re5 {[%clk 0:00:02]}  Rc6 {[%clk 0:00:05]} 34. g3 {[%clk 0:00:03]}  Re8 {[%clk 0:00:05]} 35. Kg2 {[%clk 0:00:04]}  Qc7 {[%clk 0:00:06]} 36. c4 {[%clk 0:00:03]}  Kb8 {[%clk 0:00:06]} 37. d5 {[%clk 0:00:03]}  Rd6 {[%clk 0:00:07]} 38. Rxe6 {[%clk 0:00:03]}  Rdxe6 {[%clk 0:00:07]} 39. dxe6 {[%clk 0:00:04]}  Qd6 {[%clk 0:00:08]} 40. Re3 {[%clk 0:00:04]}  Re7 {[%clk 0:00:08]} 41. h4 {[%clk 0:00:04]}  Ka7 {[%clk 0:00:08]} 42. h5 {[%clk 0:00:04]}  Qc5 {[%clk 0:00:09]} 43. Qe5 {[%clk 0:00:04]}  Qc8 {[%clk 0:00:08]} 44. h6 {[%clk 0:00:04]}  Qg8 {[%clk 0:00:08]} 45. Qc5+ {[%clk 0:00:04]} 1-0


[Site "https://www.chess.com"]

[Event "Titled Tuesday Blitz January 18 2022"]
[White "Albornoz Cabrera, Carlos Daniel"]
[Black "Kadam, Om Manish"]
[WhiteFideId "3518736"]
[BlackFideId "45076294"]
[WhiteElo "2490"]
[BlackElo "1729"]
[Result "1-0"]
[Round "04"]
[TimeControl "180+1"]
[Date "2022.01.18"]
[WhiteClock "0:02:19"]
[BlackClock "0:01:40"]

1. Nf3 {[%clk 0:02:58]}  Nf6 {[%clk 0:02:59]} 2. c4 {[%clk 0:02:58]}  g6 {[%clk 0:02:59]} 3. g3 {[%clk 0:02:58]}  Bg7 {[%clk 0:02:59]} 4. Bg2 {[%clk 0:02:59]}  O-O {[%clk 0:03:00]} 5. O-O {[%clk 0:02:59]}  c6 {[%clk 0:03:01]} 6. b3 {[%clk 0:02:57]}  d5 {[%clk 0:03:01]} 7. Bb2 {[%clk 0:02:57]}  b6 {[%clk 0:03:00]} 8. d3 {[%clk 0:02:51]}  Bb7 {[%clk 0:03:00]} 9. Nbd2 {[%clk 0:02:51]}  Nbd7 {[%clk 0:03:00]} 10. Qc2 {[%clk 0:02:50]}  Rc8 {[%clk 0:03:00]} 11. e4 {[%clk 0:02:50]}  dxe4 {[%clk 0:02:41]} 12. dxe4 {[%clk 0:02:51]}  Qc7 {[%clk 0:02:38]} 13. e5 {[%clk 0:02:40]}  Ng4 {[%clk 0:02:27]} 14. e6 {[%clk 0:02:40]}  f6 {[%clk 0:02:26]} 15. exd7 {[%clk 0:02:40]}  Qxd7 {[%clk 0:02:15]} 16. Rad1 {[%clk 0:02:35]}  Qc7 {[%clk 0:02:12]} 17. h3 {[%clk 0:02:34]}  Ne5 {[%clk 0:02:12]} 18. Nxe5 {[%clk 0:02:34]}  fxe5 {[%clk 0:02:13]} 19. Ne4 {[%clk 0:02:34]}  c5 {[%clk 0:02:12]} 20. Ng5 {[%clk 0:02:32]}  Bxg2 {[%clk 0:02:11]} 21. Kxg2 {[%clk 0:02:33]}  Rf5 {[%clk 0:02:07]} 22. Ne4 {[%clk 0:02:30]}  Rcf8 {[%clk 0:02:06]} 23. Qe2 {[%clk 0:02:27]}  Qc6 {[%clk 0:01:56]} 24. Rd3 {[%clk 0:02:24]}  h5 {[%clk 0:01:54]} 25. f3 {[%clk 0:02:23]}  g5 {[%clk 0:01:53]} 26. g4 {[%clk 0:02:22]}  hxg4 {[%clk 0:01:53]} 27. hxg4 {[%clk 0:02:22]}  Rf4 {[%clk 0:01:53]} 28. Bc1 {[%clk 0:02:22]}  R4f7 {[%clk 0:01:45]} 29. Nxg5 {[%clk 0:02:21]}  Rf6 {[%clk 0:01:45]} 30. Qe4 {[%clk 0:02:20]}  Qc7 {[%clk 0:01:40]} 31. Qh7# {[%clk 0:02:19]} 1-0


[Site "https://www.chess.com"]